fUSD/lending_fUSD_20240210
["ID","MTS","AMOUNT","RATE_DAILY","PERIOD"]
[313713001,1707601846261,-500.0,0.00038356,30]
[313713004,1707601846271,-500.0,0.00038356,30]
[313713006,1707601846280,-500.0,0.00038356,30]
[313713008,1707601846290,-500.0,0.00038356,30]
[313713010,1707601846300,-500.0,0.00038356,30]
[313713012,1707601846310,-500.0,0.00038356,30]
[313713014,1707601846319,-1257.23,0.00038356,30]
[313713016,1707601846329,-500.0,0.00038356,30]
[313713018,1707601846338,-500.0,0.00038356,30]
[313713020,1707601846348,-558.57790914,0.00038356,30]
[313713022,1707601846358,-500.0,0.00038356,30]
[313713024,1707601846367,-2240.69,0.00038356,30]
[313713026,1707601846377,-500.0,0.00038356,30]
[313713028,1707601846386,-500.0,0.00038356,2]
[313713030,1707601846396,-500.0,0.00038356,30]
[313713032,1707601846406,-500.0,0.00038356,30]
[313713034,1707601846415,-500.0,0.00038356,30]
[313713036,1707601846425,-500.0,0.00038356,30]
[313713038,1707601846436,-500.0,0.00038356,30]
[313713040,1707601846446,-500.0,0.00038356,30]
[313713042,1707601846456,-500.0,0.00038356,30]
[313713044,1707601846465,-500.0,0.00038356,30]
[313713046,1707601846475,-500.0,0.00038356,30]
[313713048,1707601846484,-500.0,0.00038356,30]
[313713050,1707601846494,-500.0,0.00038356,30]
[313713052,1707601846503,-509.28778334,0.00038356,30]
[313713054,1707601846513,-500.0,0.00038356,30]
[313713056,1707601846522,-2274.07,0.00038356,30]
[313713058,1707601846532,-500.0,0.00038356,30]
[313713060,1707601846542,-500.0,0.00038356,30]
[313713062,1707601846554,-500.0,0.00038356,30]
[313713065,1707601846565,-500.0,0.00038356,30]
[313713067,1707601846577,-500.0,0.00038356,30]
[313713069,1707601846587,-500.0,0.00038356,30]
[313713071,1707601846598,-500.0,0.00038356,30]
[313713073,1707601846607,-1307.77,0.00038356,30]
[313713075,1707601846616,-500.0,0.00038356,30]
[313713077,1707601846626,-1625.66,0.00038356,30]
[313713079,1707601846636,-500.0,0.00038356,30]
[313713081,1707601846648,-528.28,0.00038356,30]
[313713083,1707601846657,-500.0,0.00038356,30]
[313713085,1707601846667,-500.0,0.00038356,30]
[313713087,1707601846676,-1329.42,0.00038356,30]
[313713089,1707601846686,-1376.47,0.00038356,30]
[313713090,1707601846920,-1334.71,0.00038356,30]
[313713091,1707601846933,-500.0,0.00038356,30]
[313713092,1707601846942,-500.0,0.00038356,30]
[313713093,1707601846951,-881.37,0.00038356,30]
[313713094,1707601846961,-508.48481909,0.00038356,30]
[313713095,1707601846970,-500.0,0.00038356,30]
[313713096,1707601846980,-500.0,0.00038356,30]
[313713097,1707601846989,-500.0,0.00038356,30]
[313713098,1707601847000,-616.58,0.00038356,30]
[313713099,1707601847009,-500.0,0.00038356,30]
[313713100,1707601847018,-500.0,0.00038356,30]
[313713101,1707601847027,-500.0,0.00038356,30]
[313713102,1707601847037,-500.0,0.00038356,2]
[313713103,1707601847047,-500.0,0.00038356,30]
[313713104,1707601847056,-2669.57,0.00038356,30]
[313713105,1707601847065,-500.0,0.00038356,30]
[313713106,1707601847074,-577.16,0.00038356,2]
[313713107,1707601847083,-1078.4,0.00038356,30]
[313713108,1707601847092,-2323.02,0.00038356,30]
[313713109,1707601847101,-500.0,0.00038356,30]
[313713110,1707601847110,-1206.69,0.00038356,30]
[313713111,1707601847119,-500.0,0.00038356,30]
[313713112,1707601847128,-4587.53,0.00038356,30]
[313713113,1707601847137,-943.15,0.00038356,30]
[313713114,1707601847147,-743.65,0.00038356,30]
[313713115,1707601847156,-744.84,0.00038356,30]
[313713116,1707601847165,-500.0,0.00038356,30]
[313713117,1707601847174,-500.0,0.00038356,30]
[313713118,1707601847183,-932.41,0.00038356,30]
[313713119,1707601847193,-500.0,0.00038356,30]
[313713120,1707601847202,-500.0,0.00038356,30]
[313713121,1707601847211,-500.0,0.00038356,30]
[313713122,1707601847220,-500.0,0.00038356,30]
[313713123,1707601847229,-506.54982654,0.00038356,7]
[313713124,1707601847238,-500.0,0.00038356,30]
[313713125,1707601847247,-4530.38,0.00038356,30]
[313713126,1707601847256,-500.0,0.00038356,30]
[313713127,1707601847265,-1707.67,0.00038356,30]
[313713128,1707601847274,-500.0,0.00038356,30]
[313713129,1707601847282,-500.0,0.00038356,30]
[313713130,1707601847292,-500.0,0.00038356,30]
[313713131,1707601847301,-500.0,0.00038356,30]
[313713132,1707601847310,-500.0,0.00038356,30]
[313713133,1707601847319,-500.0,0.00038356,30]
[313713134,1707601847329,-500.0,0.00038356,30]
[313713135,1707601847338,-526.81,0.00038356,30]
[313713136,1707601847347,-1406.78,0.00038356,30]
[313713137,1707601847357,-647.73,0.00038356,30]
[313713138,1707601847366,-500.0,0.00038356,30]
[313713139,1707601847375,-500.0,0.00038356,30]
[313713140,1707601847385,-500.0,0.00038356,30]
[313713141,1707601847395,-1864.35,0.00038356,30]
[313713142,1707601847404,-500.0,0.00038356,30]
[313713143,1707601847413,-2927.06,0.00038356,30]
[313713144,1707601847422,-500.0,0.00038356,30]
[313713145,1707601847431,-500.0,0.00038356,30]
[313713146,1707601847440,-500.0,0.00038356,30]
[313713147,1707601847449,-500.0,0.00038356,30]
[313713148,1707601847459,-1519.09,0.00038356,30]
[313713149,1707601847468,-574.9,0.00038356,30]
[313713150,1707601847477,-500.0,0.00038356,30]
[313713151,1707601847486,-1039.09,0.00038356,30]
[313713152,1707601847495,-503.83906669,0.00038356,30]
[313713153,1707601847505,-1508.38,0.00038356,30]
[313713154,1707601847514,-523.71,0.00038356,30]
[313713155,1707601847524,-1290.83,0.00038356,30]
[313713156,1707601847533,-500.0,0.00038356,30]
[313713157,1707601847543,-500.0,0.00038356,30]
[313713158,1707601847554,-532.0,0.00038356,30]
[313713159,1707601847563,-500.0,0.00038356,30]
[313713160,1707601847575,-500.0,0.00038356,30]
[313713161,1707601847585,-500.0,0.00038356,30]
[313713162,1707601847594,-500.0,0.00038356,30]
[313713163,1707601847603,-500.0,0.00038356,30]
[313713164,1707601847613,-500.0,0.00038356,30]
[313713165,1707601847623,-1239.46,0.00038356,30]
[313713166,1707601847632,-607.24,0.00038356,30]
[313713167,1707601847642,-769.27,0.00038356,30]
[313713168,1707601847651,-500.0,0.00038356,30]
[313713169,1707601847660,-500.0,0.00038356,30]
[313713170,1707601847669,-511.89995894,0.00038356,30]
[313713171,1707601847679,-1293.56,0.00038356,30]
[313713172,1707601847688,-1594.59,0.00038356,30]
[313713173,1707601847698,-1374.11,0.00038356,30]
[313713174,1707601847707,-572.05,0.00038356,30]
[313713175,1707601847716,-500.0,0.00038356,30]
[313713176,1707601847725,-500.0,0.00038356,30]
[313713177,1707601847735,-608.25124653,0.00038356,30]
[313713178,1707601847744,-846.98,0.00038356,30]
[313713179,1707601847753,-500.0,0.00038356,30]
[313713180,1707601847762,-2406.41,0.00038356,30]
[313713181,1707601847771,-500.0,0.00038356,30]
[313713182,1707601847781,-500.0,0.00038356,30]
[313713183,1707601847790,-500.0,0.00038356,30]
[313713184,1707601847799,-500.0,0.00038356,30]
[313713185,1707601847809,-642.45,0.00038356,30]
[313713186,1707601847818,-2633.36,0.00038356,30]
[313713187,1707601847827,-500.0,0.00038356,30]
[313713188,1707601847836,-500.0,0.00038356,30]
[313713189,1707601847846,-683.9,0.00038356,30]
[313713190,1707601847855,-500.0,0.00038356,30]
[313713191,1707601847864,-500.0,0.00038356,30]
[313713192,1707601847898,-500.0,0.00038356,30]
[313713193,1707601847916,-1941.25,0.00038356,30]
[313713194,1707601847925,-500.0,0.00038356,30]
[313713195,1707601847934,-500.0,0.00038356,30]
[313713196,1707601847944,-500.0,0.00038356,30]
[313713197,1707601847953,-500.0,0.00038356,30]
[313713198,1707601847962,-800.43,0.00038356,30]
[313713199,1707601847971,-500.0,0.00038356,30]
[313713200,1707601847980,-500.0,0.00038356,30]
[313713201,1707601847990,-2269.39,0.00038356,30]
[313713202,1707601847999,-1008.96,0.00038356,30]
[313713203,1707601848008,-500.0,0.00038356,30]
[313713204,1707601848017,-500.0,0.00038356,30]
[313713205,1707601848026,-500.0,0.00038356,30]
[313713206,1707601848035,-500.0,0.00038356,30]
[313713207,1707601848045,-500.0,0.00038356,30]
[313713208,1707601848055,-500.0,0.00038356,30]
[313713209,1707601848064,-1919.56,0.00038356,30]
[313713210,1707601848073,-3274.17,0.00038356,30]
[313713211,1707601848082,-500.0,0.00038356,30]
[313713212,1707601848092,-565.81,0.00038356,30]
[313713213,1707601848100,-500.0,0.00038356,30]
[313713214,1707601848110,-500.0,0.00038356,30]
[313713215,1707601848119,-506.29947746,0.00038356,30]
[313713216,1707601848128,-500.0,0.00038356,30]
[313713217,1707601848137,-1427.37,0.00038356,30]
[313713218,1707601848146,-500.0,0.00038356,30]
[313713219,1707601848156,-500.0,0.00038356,30]
[313713220,1707601848165,-500.0,0.00038356,30]
[313713221,1707601848174,-500.0,0.00038356,30]
[313713222,1707601848183,-500.0,0.00038356,30]
[313713223,1707601848192,-500.0,0.00038356,30]
[313713224,1707601848202,-515.56117423,0.00038356,30]
[313713225,1707601848211,-500.0,0.00038356,30]
[313713226,1707601848220,-888.4,0.00038356,30]
[313713227,1707601848229,-500.0,0.00038356,30]
[313713228,1707601848239,-500.0,0.00038356,30]
[313713229,1707601848248,-500.0,0.00038356,30]
[313713230,1707601848257,-500.0,0.00038356,30]
[313713231,1707601848267,-558.56,0.00038356,30]
[313713232,1707601848276,-500.0,0.00038356,30]
[313713233,1707601848285,-500.0,0.00038356,30]
[313713234,1707601848294,-500.0,0.00038356,30]
[313713235,1707601848304,-500.0,0.00038356,30]
[313713236,1707601848313,-500.0,0.00038356,30]
[313713237,1707601848323,-2572.05,0.00038356,30]
[313713238,1707601848332,-500.0,0.00038356,30]
[313713239,1707601848341,-1220.73,0.00038356,30]
[313713240,1707601848350,-1202.85,0.00038356,30]
[313713241,1707601848360,-500.0,0.00038356,30]
[313713242,1707601848369,-235.04257408,0.00038356,30]
[313713243,1707601848378,-197.32,0.00038356,30]
[313713244,1707601848387,-960.75,0.00038356,30]
[313713245,1707601848397,-500.0,0.00038356,30]
[313713246,1707601848406,-500.0,0.00038356,30]
[313713247,1707601848415,-500.0,0.00038356,30]
[313713248,1707601848424,-500.0,0.00038356,30]
[313713249,1707601848433,-762.82,0.00038356,30]
[313713250,1707601848442,-504.66143462,0.00038356,30]
[313713251,1707601848452,-551.31,0.00038356,30]
[313713252,1707601848461,-500.0,0.00038356,30]
[313713253,1707601848470,-500.0,0.00038356,30]
[313713254,1707601848480,-565.44,0.00038356,30]
[313713255,1707601848489,-500.0,0.00038356,30]
[313713256,1707601848499,-896.5,0.00038356,30]
[313713257,1707601848508,-605.21125061,0.00038356,30]
[313713258,1707601848518,-500.0,0.00038356,30]
[313713259,1707601848527,-629.98,0.00038356,30]
[313713260,1707601848537,-500.0,0.00038356,30]
[313713261,1707601848547,-500.0,0.00038356,30]
[313713262,1707601848558,-2391.63,0.00038356,30]
[313713263,1707601848567,-516.44829937,0.00038356,30]
[313713264,1707601848577,-689.25,0.00038356,30]
[313713265,1707601848586,-500.0,0.00038356,30]
[313713266,1707601848595,-605.03,0.00038356,30]
[313713267,1707601848606,-500.0,0.00038356,30]
[313713268,1707601848615,-512.62953394,0.00038356,30]
[313713269,1707601848625,-500.0,0.00038356,30]
[313713270,1707601848635,-500.0,0.00038356,30]
[313713271,1707601848645,-1838.86,0.00038356,30]
[313713272,1707601848655,-2559.04,0.00038356,30]
[313713273,1707601848665,-168.96301871,0.00038356,30]
[313713274,1707601848675,-508.35231496,0.00038356,30]
[313713275,1707601848684,-500.0,0.00038356,30]
[313713276,1707601848693,-1498.61,0.00038356,30]
[313713277,1707601848703,-500.0,0.00038356,30]
[313713278,1707601848713,-500.0,0.00038356,30]
[313713279,1707601848722,-500.0,0.00038356,30]
[313713280,1707601848731,-500.0,0.00038356,30]
[313713281,1707601848740,-500.0,0.00038356,30]
[313713282,1707601848750,-500.0,0.00038356,30]
[313713283,1707601848759,-500.0,0.00038356,30]
[313713284,1707601848769,-458.70644978,0.00038356,30]
[313713285,1707601848778,-500.0,0.00038356,30]
[313713286,1707601848787,-558.1503373,0.00038356,30]
[313713287,1707601848796,-500.0,0.00038356,30]
[313713288,1707601848806,-500.0,0.00038356,30]
[313713289,1707601848815,-500.0,0.00038356,30]
[313713290,1707601848825,-500.0,0.00038356,30]
[313713291,1707601848834,-1021.32,0.00038356,30]
[313713292,1707601848843,-500.0,0.00038356,30]
[313713293,1707601848852,-500.0,0.00038356,30]
[313713294,1707601848862,-500.0,0.00038356,30]
[313713295,1707601848871,-2234.59,0.00038356,30]
[313713296,1707601848880,-500.0,0.00038356,30]
[313713297,1707601848889,-1365.79,0.00038356,5]
[313713298,1707601848898,-500.0,0.00038356,30]
[313713299,1707601848908,-514.47,0.00038356,30]
[313713300,1707601848917,-553.512268,0.00038356,30]
[313713301,1707601848926,-612.67,0.00038356,30]
[313713302,1707601848935,-500.0,0.00038356,30]
[313713303,1707601848944,-500.0,0.00038356,30]
[313713304,1707601848953,-500.0,0.00038356,30]
[313713305,1707601848962,-500.0,0.00038356,30]
[313713306,1707601848971,-500.0,0.00038356,30]
[313713307,1707601848981,-500.0,0.00038356,30]
[313713308,1707601848990,-500.0,0.00038356,30]
[313713309,1707601848999,-500.0,0.00038356,30]
[313713310,1707601849009,-586.91,0.00038356,30]
[313713311,1707601849017,-500.0,0.00038356,30]
[313713312,1707601849027,-500.0,0.00038356,30]
[313713313,1707601849036,-1186.41,0.00038356,30]
[313713314,1707601849046,-500.0,0.00038356,30]
[313713315,1707601849056,-500.0,0.00038356,30]
[313713316,1707601849065,-150.0,0.00038356,2]
[313713317,1707601849074,-371.82755853,0.00038502,7]
[313713318,1707601849084,-155.01257736,0.00038558,7]
[313713319,1707601849092,-371.82755853,0.00038576,7]
[313713320,1707601849102,-522.13,0.0003859,7]
[313713321,1707601849111,-522.13,0.0003859,7]
[313713322,1707601849120,-3586.85,0.00038629,30]
[313713323,1707601849129,-500.0,0.0003863,30]
[313713324,1707601849138,-500.0,0.0003863,30]
[313713325,1707601849147,-500.0,0.0003863,30]
[313713326,1707601849216,-500.0,0.0003863,30]
[313713327,1707601849225,-500.0,0.0003863,30]
[313713328,1707601849234,-500.0,0.0003863,30]
[313713329,1707601849243,-500.0,0.0003863,30]
[313713330,1707601849253,-500.0,0.0003863,30]
[313713331,1707601849262,-500.0,0.0003863,30]
[313713332,1707601849271,-500.0,0.0003863,30]
[313713333,1707601849280,-500.0,0.0003863,30]
[313713334,1707601849289,-500.0,0.0003863,30]
[313713335,1707601849297,-500.0,0.0003863,30]
[313713336,1707601849306,-500.0,0.0003863,30]
[313713337,1707601849316,-500.0,0.0003863,30]
[313713338,1707601849325,-527.66,0.0003863,30]
[313713339,1707601849333,-500.0,0.0003863,30]
[313713340,1707601849342,-500.0,0.0003863,30]
[313713341,1707601849351,-500.0,0.0003863,30]
[313713342,1707601849360,-500.0,0.0003863,30]
[313713343,1707601849369,-500.0,0.0003863,30]
[313713344,1707601849378,-500.0,0.0003863,30]
[313713345,1707601849386,-500.0,0.0003863,30]
[313713346,1707601849395,-500.0,0.0003863,30]
[313713347,1707601849404,-500.0,0.0003863,30]
[313713348,1707601849413,-500.0,0.0003863,7]
[313713349,1707601849422,-500.0,0.0003863,30]
[313713350,1707601849431,-424.0727987,0.0003863,30]
[313713351,1707601849441,-500.0,0.0003863,30]
[313713352,1707601849449,-500.0,0.0003863,30]
[313713353,1707601849459,-500.0,0.0003863,30]
[313713354,1707601849468,-500.0,0.0003863,30]
[313713355,1707601849478,-500.0,0.0003863,30]
[313713356,1707601849487,-500.0,0.0003863,30]
[313713357,1707601849496,-626.88,0.0003863,30]
[313713358,1707601849505,-500.0,0.0003863,30]
[313713359,1707601849514,-500.0,0.0003863,30]
[313713360,1707601849524,-500.0,0.0003863,30]
[313713361,1707601849532,-829.35,0.0003863,30]
[313713362,1707601849542,-500.0,0.0003863,30]
[313713363,1707601849552,-500.0,0.0003863,30]
[313713364,1707601849561,-200.43335682,0.0003863,30]
[313713365,1707601849573,-500.0,0.0003863,30]
[313713366,1707601849582,-582.77,0.0003863,30]
[313713367,1707601849591,-500.0,0.0003863,30]
[313713368,1707601849601,-500.0,0.0003863,30]
[313713369,1707601849610,-500.0,0.0003863,30]
[313713370,1707601849619,-673.15,0.0003863,30]
[313713371,1707601849629,-500.0,0.0003863,30]
[313713372,1707601849638,-635.99,0.0003863,30]
[313713373,1707601849648,-1007.19,0.0003863,30]
[313713374,1707601849659,-500.0,0.0003863,30]
[313713375,1707601849668,-763.66,0.0003863,30]
[313713376,1707601849677,-500.0,0.0003863,30]
[313713377,1707601849687,-500.0,0.0003863,30]
[313713378,1707601849697,-500.0,0.0003863,30]
[313713379,1707601849707,-500.0,0.0003863,30]
[313713380,1707601849717,-500.0,0.0003863,30]
[313713381,1707601849726,-534.16,0.0003863,30]
[313713382,1707601849735,-500.0,0.0003863,30]
[313713383,1707601849744,-500.0,0.0003863,30]
[313713384,1707601849754,-500.0,0.0003863,30]
[313713385,1707601849763,-500.0,0.0003863,30]
[313713386,1707601849772,-838.11,0.0003863,30]
[313713387,1707601849781,-250.0,0.0003863,30]
[313713388,1707601849790,-500.0,0.0003863,30]
[313713389,1707601849800,-1102.36,0.0003863,30]
[313713390,1707601849809,-500.0,0.0003863,30]
[313713391,1707601849818,-500.0,0.0003863,30]
[313713392,1707601849827,-329.76,0.0003863,30]
[313713393,1707601849836,-500.0,0.0003863,30]
[313713394,1707601849845,-500.0,0.0003863,30]
[313713395,1707601849855,-500.0,0.0003863,30]
[313713396,1707601849864,-500.0,0.0003863,30]
[313713397,1707601849873,-500.0,0.0003863,30]
[313713398,1707601849882,-567.77695034,0.0003863,30]
[313713399,1707601849892,-600.03,0.0003863,30]
[313713400,1707601849901,-500.0,0.0003863,30]
[313713401,1707601849910,-500.0,0.0003863,30]
[313713402,1707601849919,-500.0,0.0003863,30]
[313713403,1707601849928,-500.0,0.0003863,30]
[313713404,1707601849937,-642.55,0.0003863,30]
[313713405,1707601849947,-976.35,0.0003863,30]
[313713406,1707601849956,-717.72,0.0003863,30]
[313713407,1707601849965,-500.0,0.0003863,30]
[313713408,1707601849974,-500.0,0.0003863,30]
[313713409,1707601849983,-500.0,0.0003863,30]
[313713410,1707601849993,-500.0,0.0003863,30]
[313713411,1707601850002,-500.0,0.0003863,30]
[313713412,1707601850011,-554.63,0.0003863,30]
[313713413,1707601850020,-500.0,0.0003863,30]
[313713414,1707601850029,-732.11,0.0003863,30]
[313713415,1707601850038,-500.0,0.0003863,30]
[313713416,1707601850047,-713.83,0.0003863,30]
[313713417,1707601850057,-500.0,0.0003863,30]
[313713418,1707601850066,-543.49,0.0003863,30]
[313713419,1707601850075,-500.0,0.0003863,30]
[313713420,1707601850084,-500.0,0.0003863,30]
[313713421,1707601850094,-500.0,0.0003863,30]
[313713422,1707601850103,-500.0,0.0003863,30]
[313713423,1707601850112,-500.0,0.0003863,30]
[313713424,1707601850120,-500.0,0.0003863,30]
[313713425,1707601850130,-500.0,0.0003863,30]
[313713426,1707601850139,-465.29865577,0.0003863,30]
[313713427,1707601850148,-500.0,0.0003863,30]
[313713428,1707601850157,-500.0,0.0003863,30]
[313713429,1707601850167,-500.0,0.0003863,30]
[313713430,1707601850176,-500.0,0.0003863,30]
[313713431,1707601850185,-541.0,0.0003863,30]
[313713432,1707601850194,-500.0,0.0003863,30]
[313713433,1707601850203,-500.0,0.0003863,30]
[313713434,1707601850212,-500.0,0.0003863,30]
[313713435,1707601850221,-1034.04,0.0003863,30]
[313713436,1707601850230,-500.0,0.0003863,30]
[313713437,1707601850239,-500.0,0.0003863,30]
[313713438,1707601850248,-500.0,0.0003863,30]
[313713439,1707601850257,-795.66,0.0003863,30]
[313713440,1707601850266,-534.28,0.0003863,30]
[313713441,1707601850276,-500.0,0.0003863,30]
[313713442,1707601850285,-908.38,0.0003863,30]
[313713443,1707601850294,-500.0,0.0003863,30]
[313713444,1707601850304,-500.0,0.0003863,30]
[313713445,1707601850313,-500.0,0.0003863,30]
[313713446,1707601850322,-500.0,0.0003863,30]
[313713447,1707601850331,-731.71,0.0003863,30]
[313713448,1707601850340,-500.0,0.0003863,30]
[313713449,1707601850350,-500.0,0.0003863,30]
[313713450,1707601850359,-500.0,0.0003863,30]
[313713451,1707601850368,-515.27,0.0003863,30]
[313713452,1707601850377,-500.0,0.0003863,30]
[313713453,1707601850386,-500.0,0.0003863,30]
[313713454,1707601850395,-500.0,0.0003863,30]
[313713455,1707601850404,-500.0,0.0003863,30]
[313713456,1707601850413,-767.36,0.0003863,30]
[313713457,1707601850422,-884.33,0.0003863,30]
[313713458,1707601850432,-500.0,0.0003863,30]
[313713459,1707601850441,-500.0,0.0003863,30]
[313713460,1707601850451,-289.64909504,0.0003863,30]
[313713461,1707601850460,-341.30486291,0.0003863,30]
[313713462,1707601850470,-547.76,0.0003863,30]
[313713463,1707601850479,-737.52,0.0003863,30]
[313713464,1707601850489,-500.0,0.0003863,30]
[313713465,1707601850499,-500.0,0.0003863,30]
[313713466,1707601850508,-500.0,0.0003863,30]
[313713467,1707601850517,-712.78,0.0003863,30]
[313713468,1707601850527,-737.99,0.0003863,30]
[313713469,1707601850536,-599.27,0.0003863,30]
[313713470,1707601850545,-753.18,0.0003863,30]
[313713471,1707601850558,-500.0,0.0003863,30]
[313713472,1707601850569,-500.0,0.0003863,30]
[313713473,1707601850579,-500.0,0.0003863,30]
[313713474,1707601850588,-628.23,0.0003863,30]
[313713475,1707601850598,-243.01328275,0.0003863,30]
[313713476,1707601850607,-545.39,0.0003863,2]
[313713477,1707601850617,-212.7303467,0.0003863,30]
[313713478,1707601850626,-500.0,0.0003863,30]
[313713479,1707601850636,-500.0,0.0003863,30]
[313713480,1707601850647,-500.0,0.0003863,30]
[313713481,1707601850657,-500.0,0.0003863,30]
[313713482,1707601850667,-882.01,0.0003863,30]
[313713483,1707601850676,-500.0,0.0003863,30]
[313713484,1707601850685,-500.0,0.0003863,2]
[313713485,1707601850694,-523.82,0.0003863,30]
[313713486,1707601850704,-500.0,0.0003863,30]
[313713487,1707601850713,-500.0,0.0003863,30]
[313713488,1707601850723,-500.0,0.0003863,30]
[313713489,1707601850732,-788.52,0.0003863,30]
[313713490,1707601850741,-599.85,0.0003863,30]
[313713491,1707601850751,-500.0,0.0003863,30]
[313713492,1707601850760,-500.0,0.0003863,30]
[313713493,1707601850770,-500.0,0.0003863,30]
[313713494,1707601850779,-1000.0,0.0003863,120]
[313713495,1707601850788,-500.0,0.0003863,30]
[313713496,1707601850797,-500.0,0.0003863,30]
[313713497,1707601850809,-500.0,0.0003863,30]
[313713498,1707601850818,-773.2,0.0003863,30]
[313713499,1707601850827,-500.0,0.0003863,30]
[313713500,1707601850836,-500.0,0.0003863,30]
[313713501,1707601850845,-1084.51,0.0003863,30]
[313713502,1707601850854,-500.0,0.0003863,30]
[313713503,1707601850864,-520.12,0.0003863,30]
[313713504,1707601850874,-500.0,0.0003863,30]
[313713505,1707601850883,-656.96,0.0003863,30]
[313713506,1707601850892,-212.89,0.0003863,30]
[313713507,1707601850901,-535.91,0.0003863,30]
[313713508,1707601850911,-500.0,0.0003863,30]
[313713509,1707601850920,-500.0,0.0003863,30]
[313713510,1707601850929,-867.54,0.0003863,30]
[313713511,1707601850939,-610.9,0.0003863,30]
[313713512,1707601850949,-500.0,0.0003863,30]
[313713513,1707601850959,-651.27,0.0003863,30]
[313713514,1707601850968,-784.86,0.0003863,30]
[313713515,1707601850977,-500.0,0.0003863,30]
[313713516,1707601850987,-500.0,0.0003863,30]
[313713517,1707601850996,-500.0,0.0003863,30]
[313713518,1707601851005,-500.0,0.0003863,30]
[313713519,1707601851014,-500.0,0.0003863,30]
[313713520,1707601851023,-592.08,0.0003863,30]
[313713521,1707601851033,-500.0,0.0003863,30]
[313713522,1707601851042,-500.0,0.0003863,30]
[313713523,1707601851051,-500.0,0.0003863,30]
[313713524,1707601851061,-569.01,0.0003863,30]
[313713525,1707601851070,-974.04,0.0003863,30]
[313713526,1707601851079,-500.0,0.0003863,30]
[313713527,1707601851089,-500.0,0.0003863,30]
[313713528,1707601851098,-542.53,0.0003863,30]
[313713529,1707601851107,-500.0,0.0003863,30]
[313713530,1707601851116,-500.0,0.0003863,30]
[313713531,1707601851125,-514.14,0.0003863,30]
[313713532,1707601851134,-834.72,0.0003863,30]
[313713533,1707601851144,-481.77786889,0.0003863,30]
[313713534,1707601851153,-500.0,0.0003863,30]
[313713535,1707601851162,-500.0,0.0003863,30]
[313713536,1707601851171,-500.0,0.0003863,30]
[313713537,1707601851181,-500.0,0.0003863,30]
[313713538,1707601851190,-784.17,0.0003863,30]
[313713539,1707601851199,-500.0,0.0003863,30]
[313713540,1707601851208,-561.24,0.0003863,30]
[313713541,1707601851217,-500.0,0.0003863,30]
[313713542,1707601851226,-500.0,0.0003863,30]
[313713543,1707601851235,-632.71,0.0003863,30]
[313713544,1707601851244,-728.89,0.0003863,30]
[313713545,1707601851254,-500.0,0.0003863,30]